Workbook

Sheet Tabelle1
A1: Name Mitarbeiter/in: | G1: Nur auszufüllen, wenn die Arbeitszeit sich innerhalb der Stufe verändert hat (z.B. von Vollzeit zu Teilzeit): Zur Berechnung bitte ALLE Felder einer Stufe ausfüllen (Auch Monate mit 169,5h) Wird diese Berechnung genutzt, ersetzt der Wert in G5/G7 automatisch den Wert in C6/C7, auch wenn dieser bestehen bleibt
A4: Eintrittsmonat (Monat JJ): | C4: 2018-01-01 | E4: Anzahl ganze Entgeltfreie Monate pro Stufe (Monatserster - Monatsletzter): | G4: Stufe 1: | H4: 2020-01-01 | I4: 2020-02-01 | J4: 2020-03-01 | K4: 2020-04-01 | L4: 2020-05-01 | M4: 2020-06-01 | N4: 2020-07-01 | O4: 2020-08-01 | P4: 2020-09-01 | Q4: 2020-10-01 | R4: 2020-11-01 | S4: 2020-12-01 | T4: 2021-01-01 | U4: 2021-02-01 | V4: 2021-03-01
A5: Summe Monate in LHO-Unternehmen vor Eintrittsdatum: (sollte ein MA mehr als 24 Monate Zugehörigkeit haben, bitte 24 eintragen. Bei MA ohne vorherige Zugehörigkeit bitte 0 eintragen) | G5: =IFERROR(AVERAGEIF(H5:V5,"<>0"),0) -> 0
A6: Anzahl Stunden Monat (max. 169,5) | B6: 01.01.2020 - 31.03.2021: | C6: 169.5 | G6: Stufe 2: | H6: 2021-04-01 | I6: 2021-05-01 | J6: 2021-06-01 | K6: 2021-07-01 | L6: 2021-08-01 | M6: 2021-09-01 | N6: 2021-10-01
B7: 01.04.2021 - 31.10.2021: | C7: 169.5 | G7: =IFERROR(AVERAGEIF(H7:V7,"<>0"),0) -> 0
B8: ab 01.11.2021: | C8: 169.5 | E8: Hinweis: Die Stundenzahl pro Monat beträgt unabhängig von der reellen Arbeitszeit maximal 169,5. Ein höherer Wert kann in die Felder nicht eingetragen werden Für geringfügig Beschäftigte sind für die monatliche Arbeitszeit folgende Werte einzutragen: Stufe 1 (Zelle C6): 30 Stufe 2 (Zellen C7 & C8): 28,13
A9: Automatische Entgeltumwandlung (Bitte aus Dropdownmenü auswählen): | C9: Ja
A11: Einmalzahlung (01.01.2020 - 31.10.2021) | G11: Fortlaufende Zahlung (ab 01.11.2021)
A12: Grunddaten BusRente Hessen
A13: Stufen | B13: Arbeitgeberbeitrag | C13: Autom. EntgUmw ArbN | D13: AG-Zuschuss | E13: Gesamt | G13: Stufen | H13: Arbeitgeberbeitrag | J13: Automat. EntgUmw ArbN | L13: AG-Zuschuss | N13: Gesamt
A14: 01.01.2020 - 31.03.2021 | B14: =IF(C36<=25.43,C36,25.43) -> 25.43 | C14: entfällt | D14: entfällt | E14: =SUM(B14:C14) -> 25.43 | G14: 01.11.2021 - 30.06.2022 | H14: =IF(B19<=44713,IF(C38<=54.24,C38,54.24),0) -> 54.24 | J14: =IF(B19<=44713,IF($C$9="Ja",20.34*C8/169.5,"Nein"),0) -> 20.34 | L14: =IF(B19<=44713,IF($C$9="Ja",J14*0.2,"Nein"),0) -> 4.068 | N14: =SUM(H14:M14) -> 78.648
A15: 01.04.2021 - 31.10.2021 | B15: =IF(C37<=54.24,C37,54.24) -> 54.24 | C15: entfällt | D15: entfällt | E15: =SUM(B15:C15) -> 54.24 | G15: 01.07.2022 - 30.09.2023 | H15: =IF(B19<=45170,IF(C39<=84.92,C39,84.92),0) -> 84.92 | J15: =IF(B19<=45170,IF($C$9="Ja",21.23*C8/169.5,"Nein"),0) -> 21.23 | L15: =IF(B19<=45170,IF($C$9="Ja",J15*0.2,"Nein"),0) -> 4.246 | N15: =SUM(H15:M15) -> 110.396
G16: ab 01.10.2023 | H16: =IF(C40<=117.97,C40,117.97) -> 117.97 | J16: =IF($C$9="Ja",29.49*C8/169.5,"Nein") -> 29.49 | L16: =IF($C$9="Ja",J16*0.2,"Nein") -> 5.898 | N16: =SUM(H16:M16) -> 153.358
A17: Berechnung Einmalzahlung (01.01.2020 - 31.10.2021)
A18: Zeitraum | B18: Anspruch bAV seit (tt.mm.jjjj) | C18: Ende Zeitraum | D18: Anzahl bezugsberechtigte Monate | E18: Betrag
A19: Stufe 1: 01.2020 bis 03.2021 | B19: =IF(A37<A36,A36,A37) -> 2020-01-01 | C19: 2021-03-31 | D19: =IFERROR(IF(A39>15,15,A39)-E6,0) -> 15 | E19: =IFERROR(D19*E14,0) -> 381.45
A20: Stufe 2: 04.2021 bis 10.2021 | C20: 2021-10-31 | D20: =(IFERROR(IF(A40>7,7,A40)-E7,0)) -> 7 | E20: =IFERROR(D20*E15,0) -> 379.68
A21: Summe | E21: =SUM(E19:E20) -> 761.13
A22: abzgl. Finanzierungsbeitrag | E22: =IF(G5>0,-54.24*G5/169.5,-54.24*C8/169.5) -> -54.24
A23: Summe Einmalzahlung | E23: =IFERROR(IF(SUM(E21:E22)>0,SUM(E21:E22),0),0) -> 706.89
A25: Pflichteingabe | B25: Optionale Eingabe | C25: in Meldeliste der SIGNAL IDUNA zu übertragen | E25: abzuführender Finanzierungsbeitrag auf Sonderkonto
A36: 2020-01-01 | C36: =IF(G5>0,25.43*G5/169.5,25.43*C6/169.5) -> 25.43
A37: =DATE(YEAR(C4),MONTH(C4)+24-C5,DAY(C4)) -> 2020-01-01 | C37: =IF(G7>0,54.24*G7/169.5,54.24*C7/169.5) -> 54.24
C38: =54.24*$C$8/169.5 -> 54.24
A39: =DATEDIF(B19,A43,"m") -> 15 | C39: =84.92*$C$8/169.5 -> 84.92
A40: =DATEDIF(B19,A44,"m") -> 22 | C40: =117.97*$C$8/169.5 -> 117.97
A43: 2021-04-01 | C43: Ja
A44: 2021-11-01 | C44: Nein
A45: 2021-12-01

Sheet Tabelle2

Sheet Tabelle3
